[Event "Asian Continental-ch Open 2019"]
[Site "XingTai"]
[Date "2019.06.07"]
[Round "1.1"]
[White "Vidit, Santosh Gujrathi"]
[Black "Dai, Changren"]
[Result "1-0"]
[ECO "D31"]
[WhiteElo "2707"]
[BlackElo "2480"]
[Annotator "RC"]
[PlyCount "57"]
[EventDate "2019.06.06"]
[EventType "swiss"]
[EventCountry "CHN"]
[SourceTitle "playchess.com"]
[Source "ChessBase"]
[SourceQuality "1"]
[TimeControl "40/5400+30:1800+30"]

1. d4 {[%emt 0:00:00]} d5 {[%emt 0:00:00]} 2. c4 {[%emt 0:00:09]} e6 {[%emt 0:00:00]} 3. Nc3 {[%emt 0:00:25]} Be7 {[%emt 0:00:00]} 4. cxd5 {[%emt 0:00:21]} exd5 {[%emt 0:00:00]} 5. Bf4 {[%emt 0:00:10]} c6 {[%emt 0:00:06]} 6. e3 {[%emt 0:00:08]} Bf5 {[%emt 0:00:26]} 7. Nge2 {[%emt 0:00:45]} Nd7 {[%emt 0:00:15]} 8. h4 {[%emt 0:00:51]} g6 {[%emt 0:00:44]} 9. Ng3 {[%emt 0:00:49]} Be6 {[%emt 0:00:07]} 10. Qb3 {[%emt 0:00:09]} Qb6 {[%emt 0:03:39]} 11. Qc2 {[%emt 0:00:31]} h5 {[%emt 0:05:44]} 12. Bd3 {[%emt 0:04:50]} Qd8 {[%emt 0:05:13]} 13. e4 {[%emt 0:04:39]} dxe4 {[%emt 0:14:37]} 14. Ngxe4 {[%emt 0:01:01]} Nh6 {[%emt 0:12:43]} 15. Ng5 {[%emt 0:19:05]} Bf5 {[%emt 0:01:20]} 16. O-O-O {[%emt 0:00:22]} Kf8 {[%emt 0:08:22]} 17. d5 {[%emt 0:11:40]} c5 {[%emt 0:02:22]} 18. d6 {[%emt 0:03:04]} Bf6 {[%emt 0:01:15]} 19. Nd5 {[%emt 0:01:31]} Bxd3 {[%emt 0:11:23]} 20. Rxd3 {[%emt 0:03:35]} Nf5 {[%emt 0:04:51]} 21. Nc7 {[%emt 0:02:04]} Nd4 {[%emt 0:07:59]} 22. Rxd4 {[%emt 0:08:43]} cxd4 {[%emt 0:00:45]} 23. Nxf7 {[%emt 0:00:56]} Kxf7 {[%emt 0:02:55]} 24. Qb3+ {[%emt 0:00:24]} Kg7 {[%emt 0:00:34]} 25. Ne6+ {[%emt 0:00:06]} Kh7 {[%emt 0:00:03]} 26. Ng5+ {[%emt 0:03:32]} Kh6 {[%emt 0:00:58]} 27. Qf7 {[%emt 0:00:33]} Rc8+ {[%emt 0:01:28]} 28. Kb1 {[%emt 0:00:18]} Be5 {[%emt 0:00:07]} 29. Ne6+ {[%emt 0:00:09]} 1-0

[Event "Asian Continental-ch Open 2019"]
[Site "XingTai"]
[Date "2019.06.07"]
[Round "1.4"]
[White "Vignesh N R"]
[Black "Adhiban, B.."]
[Result "1/2-1/2"]
[ECO "C54"]
[WhiteElo "2459"]
[BlackElo "2676"]
[Annotator "ChessBase"]
[PlyCount "71"]
[EventDate "2019.06.06"]
[EventType "swiss"]
[EventCountry "CHN"]
[SourceTitle "playchess.com"]
[Source "ChessBase"]
[SourceQuality "1"]
[TimeControl "40/5400+30:1800+30"]

1. e4 {[%emt 0:00:00]} e5 {[%emt 0:00:00]} 2. Nf3 {[%emt 0:00:00]} Nc6 {[%emt 0:00:00]} 3. Bc4 {[%emt 0:02:28]} Nf6 {[%emt 0:00:00]} 4. d3 {[%emt 0:00:04]} Bc5 {[%emt 0:00:06]} 5. O-O {[%emt 0:03:50]} d6 {[%emt 0:00:51]} 6. c3 {[%emt 0:00:25]} a6 {[%emt 0:00:20]} 7. a4 {[%emt 0:00:30]} Ba7 {[%emt 0:00:28]} 8. Nbd2 {[%emt 0:01:18]} O-O {[%emt 0:01:01]} 9. h3 {[%emt 0:00:52]} Kh8 {[%emt 0:00:19]} 10. Nb3 {[%emt 0:10:26]} Be6 {[%emt 0:07:18]} 11. Bxe6 {[%emt 0:03:51]} fxe6 {[%emt 0:00:02]} 12. Be3 {[%emt 0:03:12]} Bxe3 {[%emt 0:08:57]} 13. fxe3 {[%emt 0:00:03]} d5 {[%emt 0:00:25]} 14. Nfd2 {[%emt 0:05:39]} Qd6 {[%emt 0:07:46]} 15. Qe2 {[%emt 0:01:29]} Rad8 {[%emt 0:07:06]} 16. Rad1 {[%emt 0:09:51]} Ne7 {[%emt 0:03:45]} 17. d4 {[%emt 0:03:54]} Ng6 {[%emt 0:29:50]} 18. Nc5 {[%emt 0:07:55]} Qc6 {[%emt 0:00:01]} 19. b4 {[%emt 0:04:39]} Rde8 {[%emt 0:06:15]} 20. b5 {[%emt 0:06:48]} axb5 {[%emt 0:00:11]} 21. Qxb5 {[%emt 0:01:32]} Qxb5 {[%emt 0:00:33]} 22. axb5 {[%emt 0:00:01]} b6 {[%emt 0:00:31]} 23. Na6 {[%emt 0:03:54]} Rf7 {[%emt 0:00:11]} 24. Nb4 {[%emt 0:01:11]} Kg8 {[%emt 0:00:28]} 25. Nc6 {[%emt 0:03:15]} exd4 {[%emt 0:07:04]} 26. exd4 {[%emt 0:00:07]} e5 {[%emt 0:01:20]} 27. dxe5 {[%emt 0:08:45]} Nxe4 {[%emt 0:01:35]} 28. Nxe4 {[%emt 0:02:10]} dxe4 {[%emt 0:05:15]} 29. Rfe1 {[%emt 0:01:33]} Nf4 {[%emt 0:03:57]} 30. Rxe4 {[%emt 0:00:41]} Ne6 {[%emt 0:00:03]} 31. Ra4 {[%emt 0:04:57]} h5 {[%emt 0:01:41]} 32. Ra2 {[%emt 0:03:34]} Rf4 {[%emt 0:03:06]} 33. Nd4 {[%emt 0:03:23]} Re4 {[%emt 0:01:11]} 34. Re2 {[%emt 0:02:41]} Nc5 {[%emt 0:01:22]} 35. Rxe4 {[%emt 0:00:44]} Nxe4 {[%emt 0:00:01]} 36. Rd3 {[%emt 0:01:16]} 1/2-1/2

[Event "Asian Continental-ch Open 2019"]
[Site "XingTai"]
[Date "2019.06.07"]
[Round "1.5"]
[White "Maghsoodloo, Parham"]
[Black "Chen, Qi b"]
[Result "1-0"]
[ECO "A16"]
[WhiteElo "2665"]
[BlackElo "2453"]
[Annotator "ChessBase"]
[PlyCount "87"]
[EventDate "2019.06.06"]
[EventType "swiss"]
[EventCountry "CHN"]
[SourceTitle "playchess.com"]
[Source "ChessBase"]
[SourceQuality "1"]
[TimeControl "40/5400+30:1800+30"]

1. Nf3 {[%emt 0:00:00]} Nf6 {[%emt 0:00:00]} 2. g3 {[%emt 0:00:00]} d5 {[%emt 0:00:58]} 3. Bg2 {[%emt 0:00:08]} g6 {[%emt 0:01:22]} 4. c4 {[%emt 0:04:00]} dxc4 {[%emt 0:03:22]} 5. Qa4+ {[%emt 0:04:46]} Nfd7 {[%emt 0:00:30]} 6. Qxc4 {[%emt 0:01:51]} Bg7 {[%emt 0:00:27]} 7. O-O {[%emt 0:02:02]} Nb6 {[%emt 0:00:43]} 8. Qc2 {[%emt 0:02:07]} Nc6 {[%emt 0:01:13]} 9. Nc3 {[%emt 0:02:10]} O-O {[%emt 0:00:36]} 10. d3 {[%emt 0:00:06]} e5 {[%emt 0:04:48]} 11. Bg5 {[%emt 0:09:26]} Nd4 {[%emt 0:09:33]} 12. Qd2 {[%emt 0:09:48]} f6 {[%emt 0:03:40]} 13. Bh6 {[%emt 0:00:08]} c6 {[%emt 0:23:30]} 14. Bxg7 {[%emt 0:09:07]} Kxg7 {[%emt 0:00:26]} 15. Ne1 {[%emt 0:00:27]} Qe7 {[%emt 0:07:14]} 16. f4 {[%emt 0:05:34]} Bd7 {[%emt 0:03:16]} 17. e3 {[%emt 0:05:08]} Nf5 {[%emt 0:01:00]} 18. fxe5 {[%emt 0:00:43]} Qxe5 {[%emt 0:00:20]} 19. Nc2 {[%emt 0:00:26]} Nd6 {[%emt 0:05:29]} 20. Rae1 {[%emt 0:06:08]} Rae8 {[%emt 0:01:23]} 21. Nd4 {[%emt 0:04:42]} Re7 {[%emt 0:05:52]} 22. Nf3 {[%emt 0:03:00]} Qh5 {[%emt 0:00:59]} 23. e4 {[%emt 0:01:31]} c5 {[%emt 0:03:26]} 24. Ne2 {[%emt 0:04:21]} c4 {[%emt 0:06:48]} 25. Qb4 {[%emt 0:01:21]} Ndc8 {[%emt 0:06:02]} 26. dxc4 {[%emt 0:03:59]} a5 {[%emt 0:01:08]} 27. Qc3 {[%emt 0:06:45]} Qc5+ {[%emt 0:00:55]} 28. Ned4 {[%emt 0:00:05]} Rfe8 {[%emt 0:01:55]} 29. Nd2 {[%emt 0:03:33]} Re5 {[%emt 0:02:14]} 30. b3 {[%emt 0:01:43]} Nd5 {[%emt 0:00:48]} 31. Qd3 {[%emt 0:01:28]} Nb4 {[%emt 0:00:47]} 32. Qe3 {[%emt 0:00:02]} Nd6 {[%emt 0:02:13]} 33. N2f3 {[%emt 0:01:56]} Rh5 {[%emt 0:00:06]} 34. e5 {[%emt 0:01:22]} Kg8 {[%emt 0:01:50]} 35. e6 {[%emt 0:01:33]} Bc6 {[%emt 0:00:57]} 36. g4 {[%emt 0:01:13]} Bxf3 {[%emt 0:00:31]} 37. gxh5 {[%emt 0:00:06]} Bxg2 {[%emt 0:00:25]} 38. Kxg2 {[%emt 0:00:07]} Qxh5 {[%emt 0:00:05]} 39. Rxf6 {[%emt 0:02:12]} Nc6 {[%emt 0:00:40]} 40. Nxc6 {[%emt 0:00:00]} bxc6 {[%emt 0:00:00]} 41. Qf4 {[%emt 0:03:45]} Nf5 {[%emt 0:00:58]} 42. Rxf5 {[%emt 0:04:55]} Qxf5 {[%emt 0:00:14]} 43. Qxf5 {[%emt 0:00:07]} gxf5 {[%emt 0:00:04]} 44. Kf3 {[%emt 0:00:10]} 1-0

[Event "Asian Continental-ch Open 2019"]
[Site "XingTai"]
[Date "2019.06.07"]
[Round "1.6"]
[White "Torre, Eugenio"]
[Black "Nguyen, Ngoc Truong Son"]
[Result "0-1"]
[ECO "D02"]
[WhiteElo "2451"]
[BlackElo "2639"]
[Annotator "ChessBase"]
[PlyCount "84"]
[EventDate "2019.06.06"]
[EventType "swiss"]
[EventCountry "CHN"]
[SourceTitle "playchess.com"]
[Source "ChessBase"]
[SourceQuality "1"]
[TimeControl "40/5400+30:1800+30"]

1. d4 {[%emt 0:00:00]} d5 {[%emt 0:00:00]} 2. Bf4 {[%emt 0:00:06]} Nf6 {[%emt 0:00:04]} 3. e3 {[%emt 0:00:22]} e6 {[%emt 0:01:20]} 4. Nd2 {[%emt 0:01:26]} Bd6 {[%emt 0:01:18]} 5. Ngf3 {[%emt 0:01:09]} O-O {[%emt 0:01:16]} 6. Bd3 {[%emt 0:01:12]} c5 {[%emt 0:01:31]} 7. c3 {[%emt 0:04:34]} Bxf4 {[%emt 0:03:20]} 8. exf4 {[%emt 0:00:13]} Qb6 {[%emt 0:00:22]} 9. Qc2 {[%emt 0:04:34]} Qc7 {[%emt 0:16:27]} 10. g3 {[%emt 0:02:01]} cxd4 {[%emt 0:00:27]} 11. cxd4 {[%emt 0:05:48]} Qxc2 {[%emt 0:01:11]} 12. Bxc2 {[%emt 0:00:11]} Bd7 {[%emt 0:01:15]} 13. Bd3 {[%emt 0:03:51]} Nc6 {[%emt 0:00:40]} 14. a3 {[%emt 0:00:10]} Rfc8 {[%emt 0:01:07]} 15. Ke2 {[%emt 0:00:51]} Rc7 {[%emt 0:00:40]} 16. Rhc1 {[%emt 0:08:20]} Rac8 {[%emt 0:00:31]} 17. Rc3 {[%emt 0:06:50]} Ne7 {[%emt 0:01:07]} 18. Rac1 {[%emt 0:08:37]} Rxc3 {[%emt 0:01:17]} 19. Rxc3 {[%emt 0:00:09]} Rxc3 {[%emt 0:02:25]} 20. bxc3 {[%emt 0:00:13]} Nc8 {[%emt 0:02:24]} 21. Ne5 {[%emt 0:00:48]} Nd6 {[%emt 0:00:46]} 22. Nxd7 {[%emt 0:11:30]} Nxd7 {[%emt 0:00:45]} 23. Nf1 {[%emt 0:13:32]} Nb6 {[%emt 0:07:25]} 24. Ne3 {[%emt 0:00:31]} f5 {[%emt 0:03:21]} 25. f3 {[%emt 0:00:35]} Kf7 {[%emt 0:18:24]} 26. Kd1 {[%emt 0:09:10]} Ke7 {[%emt 0:05:56]} 27. g4 {[%emt 0:06:36]} g6 {[%emt 0:02:07]} 28. g5 {[%emt 0:04:02]} Nbc4 {[%emt 0:06:54]} 29. Bxc4 {[%emt 0:01:06]} Nxc4 {[%emt 0:00:05]} 30. Nc2 {[%emt 0:04:32]} Kd6 {[%emt 0:01:21]} 31. Kc1 {[%emt 0:00:09]} a5 {[%emt 0:02:01]} 32. a4 {[%emt 0:01:17]} Nb6 {[%emt 0:01:05]} 33. Ne1 {[%emt 0:01:05]} Nxa4 {[%emt 0:00:14]} 34. Kc2 {[%emt 0:00:00]} Nb6 {[%emt 0:00:29]} 35. Nd3 {[%emt 0:00:16]} Nc4 {[%emt 0:00:12]} 36. Nc5 {[%emt 0:00:10]} b6 {[%emt 0:00:19]} 37. Nd3 {[%emt 0:00:07]} Kc6 {[%emt 0:00:45]} 38. h4 {[%emt 0:00:08]} Kb5 {[%emt 0:00:38]} 39. Nc1 {[%emt 0:00:08]} Ne3+ {[%emt 0:00:26]} 40. Kb3 {[%emt 0:00:00]} a4+ {[%emt 0:00:00]} 41. Ka3 {[%emt 0:00:19]} Nc4+ {[%emt 0:00:56]} 42. Ka2 {[%emt 0:00:08]} Nd2 {[%emt 0:00:41]} 0-1

[Event "Asian Continental-ch Open 2019"]
[Site "XingTai"]
[Date "2019.06.07"]
[Round "1.7"]
[White "Jumabayev, Rinat"]
[Black "Bersamina, Paulo"]
[Result "1-0"]
[ECO "E04"]
[WhiteElo "2625"]
[BlackElo "2446"]
[Annotator "ChessBase"]
[PlyCount "87"]
[EventDate "2019.06.06"]
[EventType "swiss"]
[EventCountry "CHN"]
[SourceTitle "playchess.com"]
[Source "ChessBase"]
[SourceQuality "1"]
[TimeControl "40/5400+30:1800+30"]

1. Nf3 {[%emt 0:00:00]} Nf6 {[%emt 0:00:00]} 2. c4 {[%emt 0:00:00]} e6 {[%emt 0:00:00]} 3. g3 {[%emt 0:00:00]} d5 {[%emt 0:00:00]} 4. d4 {[%emt 0:00:01]} dxc4 {[%emt 0:01:09]} 5. Bg2 {[%emt 0:00:28]} Bb4+ {[%emt 0:00:05]} 6. Bd2 {[%emt 0:00:05]} a5 {[%emt 0:00:05]} 7. Qc2 {[%emt 0:00:31]} Bxd2+ {[%emt 0:00:05]} 8. Qxd2 {[%emt 0:03:24]} c6 {[%emt 0:00:07]} 9. a4 {[%emt 0:01:09]} Ne4 {[%emt 0:00:13]} 10. Qf4 {[%emt 0:07:42]} Qb6 {[%emt 0:00:13]} 11. O-O {[%emt 0:00:48]} Qxb2 {[%emt 0:00:07]} 12. Na3 {[%emt 0:00:12]} Nc3 {[%emt 0:00:07]} 13. Qe3 {[%emt 0:23:58]} Nd5 {[%emt 0:06:56]} 14. Qe4 {[%emt 0:00:52]} Nc3 {[%emt 0:00:17]} 15. Qe3 {[%emt 0:00:05]} Nd5 {[%emt 0:01:18]} 16. Qe5 {[%emt 0:05:51]} O-O {[%emt 0:02:06]} 17. Rfb1 {[%emt 0:07:56]} Qc3 {[%emt 0:04:17]} 18. e3 {[%emt 0:07:23]} Qd3 {[%emt 0:09:58]} 19. Bf1 {[%emt 0:03:42]} Qg6 {[%emt 0:29:29]} 20. Nxc4 {[%emt 0:01:04]} Rd8 {[%emt 0:07:09]} 21. Nfd2 {[%emt 0:05:23]} Na6 {[%emt 0:09:34]} 22. Nxa5 {[%emt 0:12:50]} Nab4 {[%emt 0:03:02]} 23. Nac4 {[%emt 0:00:13]} Nc2 {[%emt 0:07:34]} 24. Ra2 {[%emt 0:00:52]} Nc3 {[%emt 0:07:11]} 25. Rbb2 {[%emt 0:02:03]} Nxa2 {[%emt 0:00:35]} 26. Nb6 {[%emt 0:00:09]} Nc3 {[%emt 0:10:35]} 27. Nxa8 {[%emt 0:01:53]} Nd5 {[%emt 0:00:05]} 28. Nb6 {[%emt 0:05:44]} f6 {[%emt 0:01:01]} 29. Qb8 {[%emt 0:02:24]} Nxb6 {[%emt 0:00:26]} 30. Qc7 {[%emt 0:00:12]} Re8 {[%emt 0:00:42]} 31. Qxb6 {[%emt 0:00:19]} Ne1 {[%emt 0:00:30]} 32. Qb3 {[%emt 0:02:39]} Qh5 {[%emt 0:00:32]} 33. e4 {[%emt 0:03:45]} Rd8 {[%emt 0:00:06]} 34. d5 {[%emt 0:00:08]} exd5 {[%emt 0:00:19]} 35. Rb1 {[%emt 0:00:37]} Qh6 {[%emt 0:01:04]} 36. f4 {[%emt 0:00:16]} g5 {[%emt 0:00:31]} 37. Rxe1 {[%emt 0:00:17]} gxf4 {[%emt 0:00:01]} 38. Nf3 {[%emt 0:01:29]} fxg3 {[%emt 0:00:34]} 39. hxg3 {[%emt 0:00:01]} Qg7 {[%emt 0:00:49]} 40. Kf2 {[%emt 0:00:00]} Be6 {[%emt 0:00:00]} 41. Nd4 {[%emt 0:07:37]} Bf7 {[%emt 0:01:24]} 42. Qxb7 {[%emt 0:03:47]} dxe4 {[%emt 0:00:03]} 43. Rxe4 {[%emt 0:00:35]} Qg5 {[%emt 0:03:33]} 44. Qb6 {[%emt 0:01:17]} 1-0

[Event "Asian Continental-ch Open 2019"]
[Site "XingTai"]
[Date "2019.06.07"]
[Round "1.9"]
[White "Sethuraman, S.P."]
[Black "Raja Harshit"]
[Result "1-0"]
[ECO "B81"]
[WhiteElo "2613"]
[BlackElo "2437"]
[Annotator "ChessBase"]
[PlyCount "81"]
[EventDate "2019.06.06"]
[EventType "swiss"]
[EventCountry "CHN"]
[SourceTitle "playchess.com"]
[Source "ChessBase"]
[SourceQuality "1"]
[TimeControl "40/5400+30:1800+30"]

1. e4 {[%emt 0:00:16]} c5 {[%emt 0:00:00]} 2. Nf3 {[%emt 0:00:05]} d6 {[%emt 0:00:12]} 3. d4 {[%emt 0:00:05]} cxd4 {[%emt 0:00:08]} 4. Nxd4 {[%emt 0:00:03]} Nf6 {[%emt 0:00:11]} 5. Nc3 {[%emt 0:00:05]} a6 {[%emt 0:00:09]} 6. h3 {[%emt 0:00:05]} e6 {[%emt 0:00:44]} 7. g4 {[%emt 0:00:34]} h6 {[%emt 0:00:26]} 8. Bg2 {[%emt 0:01:44]} Be7 {[%emt 0:00:08]} 9. Be3 {[%emt 0:01:05]} Nc6 {[%emt 0:00:34]} 10. f4 {[%emt 0:03:17]} Nd7 {[%emt 0:08:30]} 11. Nf3 {[%emt 0:05:12]} b5 {[%emt 0:08:40]} 12. O-O {[%emt 0:11:35]} Bb7 {[%emt 0:08:59]} 13. a4 {[%emt 0:03:25]} b4 {[%emt 0:12:04]} 14. Ne2 {[%emt 0:01:53]} Na5 {[%emt 0:04:31]} 15. Nd2 {[%emt 0:12:30]} O-O {[%emt 0:05:28]} 16. Ng3 {[%emt 0:14:59]} Rc8 {[%emt 0:03:59]} 17. Rc1 {[%emt 0:03:13]} Nb6 {[%emt 0:14:12]} 18. b3 {[%emt 0:00:06]} d5 {[%emt 0:00:45]} 19. Qe2 {[%emt 0:00:22]} Bc5 {[%emt 0:03:58]} 20. f5 {[%emt 0:06:08]} Bxe3+ {[%emt 0:05:07]} 21. Qxe3 {[%emt 0:00:10]} Rc3 {[%emt 0:08:04]} 22. Qf2 {[%emt 0:03:22]} e5 {[%emt 0:06:34]} 23. Ne2 {[%emt 0:13:44]} Rc8 {[%emt 0:00:56]} 24. f6 {[%emt 0:00:16]} Qxf6 {[%emt 0:03:07]} 25. Qxf6 {[%emt 0:00:17]} gxf6 {[%emt 0:00:02]} 26. Rxf6 {[%emt 0:01:13]} Rc6 {[%emt 0:00:02]} 27. Rxc6 {[%emt 0:03:09]} Bxc6 {[%emt 0:00:34]} 28. c3 {[%emt 0:00:06]} bxc3 {[%emt 0:00:28]} 29. Rxc3 {[%emt 0:00:11]} dxe4 {[%emt 0:01:57]} 30. Nxe4 {[%emt 0:02:05]} Ba8 {[%emt 0:02:07]} 31. b4 {[%emt 0:01:47]} Bxe4 {[%emt 0:01:42]} 32. Bxe4 {[%emt 0:00:56]} Nac4 {[%emt 0:00:14]} 33. a5 {[%emt 0:01:22]} Nd6 {[%emt 0:00:03]} 34. Bg2 {[%emt 0:03:14]} Nbc4 {[%emt 0:00:14]} 35. Bd5 {[%emt 0:00:10]} Rc8 {[%emt 0:01:19]} 36. Ng3 {[%emt 0:00:48]} Kf8 {[%emt 0:00:46]} 37. Nf5 {[%emt 0:03:59]} Nxf5 {[%emt 0:00:13]} 38. gxf5 {[%emt 0:00:10]} Nd6 {[%emt 0:00:04]} 39. Rxc8+ {[%emt 0:00:05]} Nxc8 {[%emt 0:00:04]} 40. Bb7 {[%emt 0:00:00]} Ne7 {[%emt 0:00:00]} 41. b5 {[%emt 0:01:53]} 1-0

[Event "Asian Continental-ch Open 2019"]
[Site "XingTai"]
[Date "2019.06.07"]
[Round "1.10"]
[White "Nguyen, Duc Hoa"]
[Black "Gupta, Abhijeet"]
[Result "0-1"]
[ECO "D91"]
[WhiteElo "2436"]
[BlackElo "2606"]
[Annotator "ChessBase"]
[PlyCount "80"]
[EventDate "2019.06.06"]
[EventType "swiss"]
[EventCountry "CHN"]
[SourceTitle "playchess.com"]
[Source "ChessBase"]
[SourceQuality "1"]
[TimeControl "40/5400+30:1800+30"]

1. d4 {[%emt 0:00:00]} Nf6 {[%emt 0:00:00]} 2. c4 {[%emt 0:00:00]} g6 {[%emt 0:00:00]} 3. Nc3 {[%emt 0:00:00]} d5 {[%emt 0:00:00]} 4. Nf3 {[%emt 0:03:17]} Bg7 {[%emt 0:00:00]} 5. Bg5 {[%emt 0:01:03]} Ne4 {[%emt 0:00:23]} 6. Bh4 {[%emt 0:00:46]} Nxc3 {[%emt 0:00:47]} 7. bxc3 {[%emt 0:00:05]} dxc4 {[%emt 0:00:10]} 8. e3 {[%emt 0:01:12]} b5 {[%emt 0:01:33]} 9. a4 {[%emt 0:04:27]} c6 {[%emt 0:00:06]} 10. Qb1 {[%emt 0:01:30]} a6 {[%emt 0:00:59]} 11. Be2 {[%emt 0:03:13]} O-O {[%emt 0:01:09]} 12. O-O {[%emt 0:00:28]} Re8 {[%emt 0:04:53]} 13. Rd1 {[%emt 0:07:08]} Nd7 {[%emt 0:02:10]} 14. d5 {[%emt 0:08:55]} cxd5 {[%emt 0:08:31]} 15. axb5 {[%emt 0:01:38]} Nb6 {[%emt 0:03:44]} 16. Qb4 {[%emt 0:16:16]} Qc7 {[%emt 0:08:51]} 17. Ra5 {[%emt 0:02:54]} e5 {[%emt 0:12:21]} 18. Qa3 {[%emt 0:08:52]} h6 {[%emt 0:09:02]} 19. Bg3 {[%emt 0:13:59]} f5 {[%emt 0:08:33]} 20. h3 {[%emt 0:01:52]} f4 {[%emt 0:08:38]} 21. Bh2 {[%emt 0:01:26]} Qe7 {[%emt 0:08:45]} 22. Qa2 {[%emt 0:06:30]} g5 {[%emt 0:09:53]} 23. bxa6 {[%emt 0:00:43]} Be6 {[%emt 0:00:33]} 24. Rb1 {[%emt 0:09:37]} Reb8 {[%emt 0:01:20]} 25. a7 {[%emt 0:01:32]} Rb7 {[%emt 0:00:05]} 26. Ra6 {[%emt 0:00:29]} Qc7 {[%emt 0:04:14]} 27. Ra1 {[%emt 0:05:05]} Bf7 {[%emt 0:00:37]} 28. h4 {[%emt 0:00:30]} g4 {[%emt 0:01:38]} 29. Nd2 {[%emt 0:00:14]} g3 {[%emt 0:00:47]} 30. fxg3 {[%emt 0:00:04]} fxe3 {[%emt 0:00:05]} 31. Nf1 {[%emt 0:00:29]} Nc8 {[%emt 0:01:41]} 32. Bg4 {[%emt 0:01:01]} Raxa7 {[%emt 0:02:36]} 33. Qe2 {[%emt 0:00:30]} Rxa6 {[%emt 0:00:31]} 34. Rxa6 {[%emt 0:00:05]} d4 {[%emt 0:00:29]} 35. Bf3 {[%emt 0:00:52]} Rb6 {[%emt 0:00:38]} 36. Ra8 {[%emt 0:00:23]} Rb8 {[%emt 0:00:06]} 37. Ra2 {[%emt 0:00:15]} Nd6 {[%emt 0:00:51]} 38. g4 {[%emt 0:00:21]} Nb5 {[%emt 0:00:12]} 39. Qc2 {[%emt 0:01:16]} d3 {[%emt 0:00:30]} 40. Qc1 {[%emt 0:00:00]} Qc5 {[%emt 0:00:00]} 0-1

[Event "Asian Continental-ch Open 2019"]
[Site "XingTai"]
[Date "2019.06.07"]
[Round "1.11"]
[White "Nihal Sarin"]
[Black "Laylo, Darwin"]
[Result "1-0"]
[ECO "A45"]
[WhiteElo "2606"]
[BlackElo "2433"]
[Annotator "ChessBase"]
[PlyCount "87"]
[EventDate "2019.06.06"]
[EventType "swiss"]
[EventCountry "CHN"]
[SourceTitle "playchess.com"]
[Source "ChessBase"]
[SourceQuality "1"]
[TimeControl "40/5400+30:1800+30"]

1. d4 {[%emt 0:00:17]} Nf6 {[%emt 0:00:11]} 2. Bf4 {[%emt 0:00:38]} c5 {[%emt 0:01:31]} 3. d5 {[%emt 0:01:15]} d6 {[%emt 0:00:42]} 4. Nc3 {[%emt 0:01:13]} e5 {[%emt 0:00:20]} 5. Bd2 {[%emt 0:03:31]} a6 {[%emt 0:02:52]} 6. a4 {[%emt 0:03:50]} Bf5 {[%emt 0:05:29]} 7. e3 {[%emt 0:13:44]} h5 {[%emt 0:05:30]} 8. h4 {[%emt 0:12:07]} Ne4 {[%emt 0:03:30]} 9. Bd3 {[%emt 0:18:55]} Nxc3 {[%emt 0:02:35]} 10. Bxc3 {[%emt 0:00:34]} Bxd3 {[%emt 0:00:07]} 11. Qxd3 {[%emt 0:02:13]} Nd7 {[%emt 0:00:10]} 12. a5 {[%emt 0:01:02]} g6 {[%emt 0:01:05]} 13. Nf3 {[%emt 0:00:26]} Bg7 {[%emt 0:01:06]} 14. e4 {[%emt 0:03:03]} O-O {[%emt 0:01:45]} 15. Ng5 {[%emt 0:15:36]} Nf6 {[%emt 0:06:09]} 16. g3 {[%emt 0:00:40]} Nh7 {[%emt 0:01:45]} 17. Bd2 {[%emt 0:07:06]} Nxg5 {[%emt 0:06:01]} 18. hxg5 {[%emt 0:00:07]} f5 {[%emt 0:00:38]} 19. gxf6 {[%emt 0:00:19]} Qxf6 {[%emt 0:00:03]} 20. Qe2 {[%emt 0:00:53]} Rf7 {[%emt 0:01:59]} 21. Ra3 {[%emt 0:00:09]} Raf8 {[%emt 0:00:10]} 22. Rh2 {[%emt 0:00:01]} Qd8 {[%emt 0:01:54]} 23. g4 {[%emt 0:05:04]} h4 {[%emt 0:00:37]} 24. g5 {[%emt 0:00:08]} Rf4 {[%emt 0:00:19]} 25. Bxf4 {[%emt 0:00:26]} Rxf4 {[%emt 0:00:09]} 26. Rg2 {[%emt 0:01:54]} Qd7 {[%emt 0:04:16]} 27. Kf1 {[%emt 0:00:33]} Bf8 {[%emt 0:01:50]} 28. Kg1 {[%emt 0:01:01]} Be7 {[%emt 0:00:29]} 29. Rf3 {[%emt 0:01:31]} h3 {[%emt 0:04:43]} 30. Rxf4 {[%emt 0:01:10]} hxg2 {[%emt 0:03:01]} 31. Qg4 {[%emt 0:00:11]} Qxg4 {[%emt 0:00:24]} 32. Rxg4 {[%emt 0:00:01]} Bd8 {[%emt 0:00:14]} 33. Kxg2 {[%emt 0:01:15]} Bxa5 {[%emt 0:00:13]} 34. Rg3 {[%emt 0:00:31]} Bd8 {[%emt 0:00:25]} 35. c4 {[%emt 0:00:35]} Kf7 {[%emt 0:03:17]} 36. Rb3 {[%emt 0:00:46]} b5 {[%emt 0:04:04]} 37. cxb5 {[%emt 0:00:34]} axb5 {[%emt 0:00:03]} 38. Rxb5 {[%emt 0:00:01]} Bxg5 {[%emt 0:00:27]} 39. Rb7+ {[%emt 0:00:01]} Be7 {[%emt 0:00:38]} 40. Kf3 {[%emt 0:00:00]} Ke8 {[%emt 0:00:00]} 41. Ke2 {[%emt 0:00:52]} Kf7 {[%emt 0:06:50]} 42. Kd3 {[%emt 0:00:32]} Kf6 {[%emt 0:00:13]} 43. Kc4 {[%emt 0:00:08]} g5 {[%emt 0:01:48]} 44. f3 {[%emt 0:00:19]} 1-0